Workbook

Sheet 汇总表
A1: 2023年“H”项目结构工程专业分包工程报价汇总表
A2: 序号 | B2: 项目名称 | C2: 招标控制价 （元） | D2: 投标报价 （元） | E2: 备注
A3: 1 | B3: 过街天桥 | C3: =过街大桥!G50 -> 4,324,221.64
A4: 2 | B4: 水幕桥 | C4: =水幕桥!G35 -> 1,858,909.57
A5: 3 | B5: 退台栈桥 | C5: =退台栈桥!G42 -> 883,228.91
A6: 4 | B6: 合计： | C6: =SUM(C3:C5) -> 7,066,360.11
A7: 特别说明： 1、工程招标和分包范围：本工程所属范围的过街天桥、水幕桥、退台栈桥安装。包括：本工程设计施工图、图纸会审、设计变更、技术核定单中的桥梁工程所有施工工作内容。过街天桥2mm厚穿孔镀锌钢板曲面造型、三座桥梁的栏杆不在本次招标范围内，投标人只实施栏杆及装饰板预埋件； 2.投标人根据施工工艺、工序及国家现行规范自行踏勘现场后综合考虑进行报价，结算时不作调整; 3.全费用综合单价包含人工费、所有材料费（含辅材和周转材料费）、机械设备费、工具器具费、临时设施及措施费、大型机械进出场及场内转运费、下车费、吊装费、规费、管理费、配合费、安全文明施工费、以及各种风险费、保险费、施工过程中办理的各种手续费、降水费、排水费、各种检测费、利润、税费等完成该工作所需的全部费用，结算时无论涨跌、工程量增减或其它任何风险因素，均不作调整。 4.施工中所用临时配电箱、用电线路、开关箱、机具等从建设方提供的接口处接出，所有材料、设备及安装费用含在综合单价中。

Sheet 过街大桥
A1: 2023年“H”项目结构工程专业分包工程量清单与报价表
A2: 序号 | B2: 项目名称 | C2: 项目特征 | D2: 计量 单位 | E2: 工程量 | F2: 招标控制价（元） | H2: 金额（元）
F3: 单价 | G3: 合价 | H3: 班组所报全费用单价 | I3: 合价
B4: 土石方工程
A5: 1 | B5: 挖基坑土石方 | C5: 1.土石类别：各类土、石(含淤泥)综合，以及现场建(废)渣综合 2.基础类型：综合 3.开挖或开凿深度：按设计要求 4.基底摊座要求：综合，由投标人综合考虑 5.开挖、装土方式：综合，由投标人综合考虑 6.土、石渣场内运输方式及运距：投标人自行确定 7.做法：满足设计及现行施工技术、质量验收规范要求 | D5: m3 | E5: 483.12 | F5: 18.00 | G5: =F5*E5 -> 8696.16
A6: 2 | B6: 回填方 | C6: 1.填方材料品种：综合，但需满足设计要求 2.密实度：回填土分层夯填，压实系数满足设计要求 3.回填土来源及场内外运输方式、运距：投标人自行确定 4.做法：满足设计及现行施工技术、质量验收规范要求 | D6: m3 | E6: 65.88 | F6: 7.00 | G6: =F6*E6 -> 461.16
A7: 3 | B7: 余方弃置（含弃置费） | C7: 1.废弃料品种：土方、石方综合（含淤泥），以及现场建(废)渣综合 2.弃土、石（渣）场及场外运距：投标人自行踏勘现场考虑、自主确定弃土、石场及运距（含弃渣、土、石场费用、弃土费） 3.做法：满足设计及现行施工技术、质量验收规范要求 | D7: m3 | E7: =E5-E6 -> 417.24 | F7: 20.00 | G7: =F7*E7 -> 8344.80
B8: 分部小计 | G8: =SUM(G5:G7) -> 17502.12 | I8: =SUM(I5:I7) -> 0.00
B9: 桥涵工程
A10: 4 | B10: 垫层 C15商品砼 | C10: 1.混凝土强度等级：C15商品砼 2.砼运输方式及运距：投标人自行确定 3.外加剂：满足设计要求，投标人应考虑该部分费用已含在该单价中 4.砼现场泵送采用的机械种类及方式：投标人自行确定，泵送费用和泵送运距已综合考虑在单价中 5.做法：满足设计及现行施工技术、质量验收规范要求 | D10: m3 | E10: 13 | F10: =370*1.03+40+30 -> 451.10 | G10: =F10*E10 -> 5864.30
A11: 5 | B11: 承台 C35商品砼 | C11: 1.混凝土强度等级：C35商品砼 2.砼运输方式及运距：投标人自行确定 3.砼现场泵送采用的机械种类及方式：投标人自行确定，泵送费用和泵送运距已综合考虑在单价中 4.做法：满足设计及现行施工技术、质量验收规范要求 | D11: m3 | E11: 245 | F11: 558.58 | G11: =F11*E11 -> 136852.10
A12: 6 | B12: 桥台 C35商品砼 | C12: 1.混凝土强度等级：C35商品砼 2.砼运输方式及运距：投标人自行确定 3.砼现场泵送采用的机械种类及方式：投标人自行确定，泵送费用和泵送运距已综合考虑在单价中 4.做法：满足设计及现行施工技术、质量验收规范要求 | D12: m3 | E12: 50.6 | F12: 558.20 | G12: 28244.92
A13: 7 | B13: 桥墩 C40细石商品砼 | C13: 1.混凝土强度等级：C40细石商品砼 2.砼运输方式及运距：投标人自行确定 3.外加剂：满足设计要求，投标人应考虑该部分费用已含在该单价中 4.砼现场泵送采用的机械种类及方式：投标人自行确定，泵送费用和泵送运距已综合考虑在单价中 5.做法：满足设计及现行施工技术、质量验收规范要求 | D13: m3 | E13: 0.2 | F13: 600.00 | G13: 120.00
A14: 8 | B14: 桥墩 C35 防水商品砼 | C14: 1.混凝土强度等级：C35防水商品砼 2.砼运输方式及运距：投标人自行确定 3.外加剂：满足设计要求，投标人应考虑该部分费用已含在该单价中 4.砼现场泵送采用的机械种类及方式：投标人自行确定，泵送费用和泵送运距已综合考虑在单价中 5.做法：满足设计及现行施工技术、质量验收规范要求 | D14: m3 | E14: 49.5 | F14: 600.00 | G14: 29700.00
A15: 9 | B15: 桥墩 C35自密实品砼 | C15: 1.混凝土强度等级：C35自密实品砼 2.砼运输方式及运距：投标人自行确定 3.外加剂：满足设计要求，投标人应考虑该部分费用已含在该单价中 4.砼现场泵送采用的机械种类及方式：投标人自行确定，泵送费用和泵送运距已综合考虑在单价中 5.做法：满足设计及现行施工技术、质量验收规范要求 | D15: m3 | E15: 36.6 | F15: 600.00 | G15: 21960.00
A16: 10 | B16: 桥墩 C35自密实品砼 | C16: 1.混凝土强度等级：C35自密实品砼 2.砼运输方式及运距：投标人自行确定 3.外加剂：满足设计要求，投标人应考虑该部分费用已含在该单价中 4.砼现场泵送采用的机械种类及方式：投标人自行确定，泵送费用和泵送运距已综合考虑在单价中 5.做法：满足设计及现行施工技术、质量验收规范要求 | D16: m3 | E16: 20.8 | F16: 600.00 | G16: 12480.00
A17: 11 | B17: 现浇构件钢筋HPB300直径 φ10以内 制作、安装 | C17: 1.钢筋种类、规格：钢筋HPB300直径 φ10以内 2.钢筋连接方式：各种连接方式投标人综合考虑在报价中 3.弧形构件钢筋投标人综合考虑，进入综合单价中 4.投标人综合考虑埋设的方式，以及钢筋笼吊装等费用均包括在所报综合单价中不再另行计取 5.做法：满足设计及现行施工技术、质量验收规范要求 | D17: t | E17: 1.93 | F17: 6500.00 | G17: 12545.00
A18: 12 | B18: 现浇构件钢筋HRB400E直径 ≥φ16 制作、安装 | C18: 1.钢筋种类、规格：螺纹钢HRB400E ≥φ16 2.钢筋连接方式：各种连接方式投标人综合考虑在报价中 3.弧形构件钢筋投标人综合考虑，进入综合单价中 4.投标人综合考虑埋设的方式，以及钢筋笼吊装等费用均包括在所报综合单价中不再另行计取 5.做法：满足设计及现行施工技术、质量验收规范要求 | D18: t | E18: 57.49 | F18: 6500.00 | G18: 373685.00
A19: 13 | B19: 阻尼器 | C19: 1.单个TMD质量1吨,竖向频率2.5Hz,最大阻尼比0.1,外形尺寸900*600*540mm； 2.质量块螺杆处的螺母拧紧时涂螺纹胶； 3.每件TMD配2个M16吊环； 4.每件TMD配10个弹簧,安装6个,另外4个随货发出。 5.具体做法满足设计及现行施工技术、质量验收规范要求。 | D19: 个 | E19: 2 | F19: 24000.00 | G19: 48000.00
B20: 分部小计 | G20: =SUM(G10:G19) -> 669451.32 | I20: =SUM(I10:I19) -> 0.00
B21: 桥面工程
A22: 14 | B22: C40细石混凝土刚性层（有筋） | C22: 1.混凝土强度等级：50厚C40细石商品砼； 2.钢筋网片规格：φ4mm钢筋网片； 3.砼运输方式及运距：投标人自行确定 4.砼现场泵送采用的机械种类及方式：投标人自行确定，泵送费用和泵送运距已综合考虑在单价中 5.做法：满足设计及现行施工技术、质量验收规范要求 | D22: m2 | E22: 292.3 | F22: 60.00 | G22: =F22*E22 -> 17538.00
A23: 16 | B23: 1mm环氧树脂封闭层 | C23: 1.部位：桥面 2.材料品种、规格：环氧树脂封闭层； 3.做法：满足设计及现行施工技术、质量验收规范要求 | D23: m2 | E23: 292.3 | F23: 12.50 | G23: 3653.75
A24: 17 | B24: 2mm改性环氧树脂防水层 | C24: 1.防水膜品种：改性环氧树脂 2.涂膜厚度：2mm； 3.做法：满足设计及现行施工技术、质量验收规范要求 | D24: m2 | E24: 292.3 | F24: 40.00 | G24: 11692.00
A25: 18 | B25: 5mm厚硅PU面层 | C25: 1.面层材料品种、规格、颜色：改性丙烯酸面漆； 2.5mm硅PU面层包含:改性丙烯酸面漆、2厚加强层、3厚发泡弹性层； 3.其余要求：材料中底漆、弹性层、加强层、面漆须同时满足新国标GB 36246-2018环保性能要求；面层成品抗寒性测试、冻融循环性测试、热空气老化测试前后,拉伸强度、拉断伸长率、撕裂强度性能数据符合GB/T 22517.4-2017、GB/T 14833-2020的相关要求,并提供具有“CMA”资质的检测机构出具的测试报告 | D25: m2 | E25: 292.3 | F25: 135.00 | G25: 39460.50
A26: 19 | B26: 桥面排（泄）水管 φ80 | C26: 1.材料品种：PVC 2.管径：φ80 3.安装方式：固定管卡，泄水管口安装时与地袱侧板开洞周围进行防水密封处理； 4.做法：满足设计及现行施工技术、质量验收规范要求 | D26: m | E26: 15 | F26: 20.00 | G26: 300.00
A27: 20 | B27: 桥面排（泄）水管 φ100 | C27: 1.材料品种：PVC 2.管径：φ100 3.安装方式：固定管卡 4.做法：满足设计及现行施工技术、质量验收规范要求 | D27: m | E27: 105 | F27: 35.00 | G27: 3675.00
A28: 21 | B28: 反光涂料油漆 | C28: 1.材料品种：反光油漆警示标识 2.类型 ：按设计要求 3.规格尺寸：按设计要求 4.其他具体做法详设计并满足现行施工、技术、质量验收规范要求 | D28: m2 | E28: 10.51 | F28: 25.00 | G28: 262.75
A29: 22 | B29: 标志牌 | C29: 1.类型：800*800限高标牌 2.材质、规格尺寸：铝合金面板，厚度详设计 3.板面反光膜等级：工程级反光膜 4.其他具体做法详设计并满足现行施工、技术、质量验收规范要求 | D29: 个 | E29: 4 | F29: 500.00 | G29: =F29*E29 -> 2000.00
A30: 23 | B30: 泄水管管盖（格栅盖板） | C30: 1.格栅盖板规格尺寸：260mm*140mm； 2.材质：铸铁盖板； 3.做法：满足设计及现行施工技术、质量验收规范要求。 | D30: 套 | E30: 8 | F30: 150 | G30: 1200.00
B31: 分部小计 | G31: =SUM(G22:G30) -> 79782.00 | I31: =SUM(I22:I30) -> 0.00
B32: 钢结构工程
A33: 24 | B33: 成品箱形钢梁（斜面、曲线、螺旋流线型） | C33: 1.成品钢材品种、规格：成品箱形钢梁（斜面、曲线、螺旋流线型），Q355C，具体规格详设计施工图 2.安装高度：详见设计施工图 3.钢构件表面先除锈后，防腐、油漆其余具体做法按设计施工图要求 4.螺栓、橡胶垫板、固定配件和连接配件等材料种类规格：详见设计施工图，现场施工满足设计规范要求，其费用已综合考虑在单价中 5.钢结构连接处和探伤做法：详见设计施工图，满足设计要求； 6.伸缩缝：Q235C预埋件，聚氨酯填缝； 7.支座采用抗震抗拉球型钢支座KLQZ1500KN-ZX±100/KLQZ1500KN-DX±100，具体规格详设计施工图； 8.钢构件场内、外运距：由投标人自行确定 9.其他：该单价费用已包括安装、拼接、吊装、调试和成品保护等费用，投标人报价时应充分考虑；其余涉及钢结构措施费，另列在干杯建筑物总价包干措施费中； 10.做法：满足设计及现行施工技术、质量验收规范要求 | D33: t | E33: =223.859-E35 -> 208.489 | F33: 10300.00 | G33: 2147436.70
A34: 25 | B34: "V"型钢桥墩 | C34: 1.成品钢材品种、规格："V"型钢桥墩，Q355C，具体规格详设计施工图 2.安装高度：详见设计施工图 3.钢构件表面先除锈后，防腐、油漆其余具体做法按设计施工图要求 4.螺栓、橡胶垫板、固定配件和连接配件等材料种类规格：详见设计施工图，现场施工满足设计规范要求，其费用已综合考虑在单价中 5.钢结构连接处和探伤做法：详见设计施工图，满足设计要求 6.钢构件场内、外运距：由投标人自行确定 7.其他：该单价费用已包括安装、拼接、吊装、调试和成品保护等费用，投标人报价时应充分考虑；其余涉及钢结构措施费，另列在干杯建筑物总价包干措施费中； 8.做法：满足设计及现行施工技术、质量验收规范要求 | D34: t | E34: 82.7 | F34: 10300.00 | G34: 851810.00
A35: 26 | B35: 成品踏步式钢梯 | C35: 1.成品钢材品种、规格：成品踏步式钢梯，Q355C，具体规格详设计施工图 2.安装高度：详见设计施工图 3.钢构件表面先除锈后，钢构件表面先除锈后，防腐、油漆其余具体做法按设计施工图要求 4.螺栓、橡胶垫板、固定配件和连接配件等材料种类规格：详见设计施工图，现场施工满足设计规范要求，其费用已综合考虑在单价中 5.钢结构连接处和探伤做法：详见设计施工图，满足设计要求 6.钢构件场内、外运距：由投标人自行确定 7.其他：该单价费用已包括安装、拼接和吊装费用，投标人报价时应充分考虑；其余涉及钢结构措施费，另列在干杯建筑物总价包干措施费中； 8.做法：满足设计及现行施工技术、质量验收规范要求 | D35: t | E35: 15.37 | F35: 10300.00 | G35: 158311.00
A36: 27 | B36: 零星钢构件 | C36: 1.成品钢材品种、规格：Q355B，具体规格详设计施工图 2.安装高度：详见设计施工图 3.钢构件表面先除锈后，钢构件表面先除锈后，防腐、油漆其余具体做法按设计施工图要求 4.螺栓、橡胶垫板、固定配件和连接配件等材料种类规格：详见设计施工图，现场施工满足设计规范要求，其费用已综合考虑在单价中 5.钢结构连接处和探伤做法：详见设计施工图，满足设计要求 6.钢构件场内、外运距：由投标人自行确定 7.其他：该单价费用已包括安装、拼接和吊装费用，投标人报价时应充分考虑；其余涉及钢结构措施费，另列在干杯建筑物总价包干措施费中； 8.做法：满足设计及现行施工技术、质量验收规范要求 | D36: t | E36: 4.582 | F36: 10000.00 | G36: 45820.00
B37: 分部小计 | G37: =SUM(G33:G36) -> 3203377.70 | I37: =SUM(I33:I36) -> 0.00
B38: 措施项目
A39: 28 | B39: 完成桥梁安装的所有措施费 | C39: 包括但不限于经发包人审批合格的施工方案相关措施费及以下内容： 1.由于施工受行车、行人干扰的影响，导致人工、机械效率降低而增加的费用； 2．为保证行车、行人的安全，现场增设维护交通与疏导人员而增加的人工费用； 3.包括需要搭设的脚手架、支架区域的150mm厚C25商品砼地面硬化及拆除，支架的搭拆、运输，支架的租赁和使用费，临时支墩和垫板费用等，即：投标人应根据设计图及企业自身实力，综合考虑搭设支架的做法以及涉及的相关费用； 4.破除及恢复，既有九狮路沥青路面、基层、标线和人行道路面、基层；桥梁承台开挖后的边坡防护措施、防排水措施等费用 5.做法：满足设计及现行技术、质量验收规范要求 | D39: 项 | E39: 1 | F39: 300000.00 | G39: =F39*E39 -> 300000.00
B40: 分部小计 | G40: =SUM(G39:G39) -> 300000.00 | I40: =SUM(I39:I39) -> 0.00
B41: 混凝土模板及支架（撑 ）
A42: 29 | B42: 垫层模板安、拆 | C42: 1.支模高度：综合 2.模板类型：木模、组合钢模板、竹胶合板等综合 3.支架材料：钢管、竹、木支架综合，断面尺寸、材质、工艺等符合设计和施工验收规范要求 4.本项目投标人应根据施工经验,现场实际情况和企业自身情况综合报价,不论采用何种支模方式综合报价 | D42: m2 | E42: 69.6 | F42: 35.00 | G42: =F42*E42 -> 2436.00
A43: 30 | B43: 承台模板安、拆 | C43: 1.支模高度：综合 2.模板类型：木模、组合钢模板、竹胶合板等综合 3.支架材料：钢管、竹、木支架综合，断面尺寸、材质、工艺等符合设计和施工验收规范要求 4.本项目投标人应根据施工经验,现场实际情况和企业自身情况综合报价,不论采用何种支模方式综合报价 | D43: m2 | E43: 425.36 | F43: 70.00 | G43: =F43*E43 -> 29775.20
A44: 31 | B44: 桥墩模板安、拆 | C44: 1.支模高度：综合 2.模板类型：木模、组合钢模板、竹胶合板等综合 3.支架材料：钢管、竹、木支架综合，断面尺寸、材质、工艺等符合设计和施工验收规范要求 4.本项目投标人应根据施工经验,现场实际情况和企业自身情况综合报价,不论采用何种支模方式综合报价 | D44: m2 | E44: 136.02 | F44: 70.00 | G44: =F44*E44 -> 9521.40
A45: 32 | B45: 桥台模板安、拆 | C45: 1.支模高度：综合 2.模板类型：木模、组合钢模板、竹胶合板等综合 3.支架材料：钢管、竹、木支架综合，断面尺寸、材质、工艺等符合设计和施工验收规范要求 4.本项目投标人应根据施工经验,现场实际情况和企业自身情况综合报价,不论采用何种支模方式综合报价 | D45: m2 | E45: 105.37 | F45: 70.00 | G45: =F45*E45 -> 7375.90
B46: 分部小计 | G46: =SUM(G42:G45) -> 49108.50 | I46: =SUM(I42:I45) -> 0.00
B47: 大型机械设备进出场及安拆
A48: 33 | B48: 大型机械设备进出场及安拆 | C48: 1.机械设备名称、型号：投标人综合自身施工组织能力考虑机械型号； 2.机械进场、出场费用已含在该单价中 3.做法：满足设计及现行施工技术、质量验收规范要求 | D48: 项 | E48: 1 | F48: 5000.00 | G48: =F48*E48 -> 5000.00
B49: 分部小计 | G49: =G48 -> 5000.00 | I49: =I48 -> 0.00
B50: 合 计： | G50: =G8+G20+G31+G37+G40+G46+G49 -> 4,324,221.64 | I50: =I8+I20+I31+I37+I40+I46+I49 -> 0.00

Sheet 水幕桥
A1: 2023年“H”项目结构工程专业分包工程量清单与报价表
A2: 序号 | B2: 项目名称 | C2: 项目特征 | D2: 计量 单位 | E2: 工程量 | F2: 招标控制价（元） | H2: 金额（元）
F3: 单价 | G3: 合价 | H3: 班组所报全费用单价 | I3: 合价
B4: 土石方工程
A5: 1 | B5: 挖基坑土石方 | C5: 1.土石类别：各类土、石(含淤泥)综合，以及现场建(废)渣综合 2.基础类型：综合 3.开挖或开凿深度：按设计要求 4.基底摊座要求：综合，由投标人综合考虑 5.开挖、装土方式：综合，由投标人综合考虑 6.土、石渣场内运输方式及运距：投标人自行确定 7.做法：满足设计及现行施工技术、质量验收规范要求 | D5: m3 | E5: 102 | F5: 18.00 | G5: =F5*E5 -> 1836.00
A6: 2 | B6: 回填方 | C6: 1.填方材料品种：综合，但需满足设计要求 2.密实度：回填土分层夯填，压实系数满足设计要求 3.回填土来源及场内外运输方式、运距：投标人自行确定 4.做法：满足设计及现行施工技术、质量验收规范要求 | D6: m3 | E6: 35 | F6: 7.00 | G6: 245.00
A7: 3 | B7: 余方弃置（含弃置费） | C7: 1.废弃料品种：土方、石方综合（含淤泥），以及现场建(废)渣综合 2.弃土、石（渣）场及场外运距：投标人自行踏勘现场考虑、自主确定弃土、石场及运距（含弃渣、土、石场费用、弃土费） 3.做法：满足设计及现行施工技术、质量验收规范要求 | D7: m3 | E7: =E5-E6 -> 67 | F7: 20.00 | G7: 1340.00
B8: 分部小计 | G8: =SUM(G5:G7) -> 3421.00 | I8: =SUM(I5:I7) -> 0.00
B9: 桥涵工程
A10: 4 | B10: 垫层 C15商品砼 | C10: 1.混凝土强度等级：C15商品砼 2.砼运输方式及运距：投标人自行确定 3.外加剂：满足设计要求，投标人应考虑该部分费用已含在该单价中 4.砼现场泵送采用的机械种类及方式：投标人自行确定，泵送费用和泵送运距已综合考虑在单价中 5.做法：满足设计及现行施工技术、质量验收规范要求 | D10: m3 | E10: 2.2 | F10: =370*1.03+40+30 -> 451.10 | G10: =F10*E10 -> 992.42
A11: 5 | B11: 挡土板 C20商品砼 | C11: 1.混凝土强度等级：C20商品砼 2.砼运输方式及运距：投标人自行确定 3.外加剂：满足设计要求，投标人应考虑该部分费用已含在该单价中 4.砼现场泵送采用的机械种类及方式：投标人自行确定，泵送费用和泵送运距已综合考虑在单价中 5.做法：满足设计及现行施工技术、质量验收规范要求 | D11: m3 | E11: =4.5*2*0.7 -> 6.3 | F11: =380*1.03+40+30 -> 461.40 | G11: 2906.82
A12: 6 | B12: C25细石混凝土墩（台）身 | C12: 1.混凝土强度等级：C25商品细石砼 2.砼运输方式及运距：投标人自行确定 3.外加剂：满足设计要求，投标人应考虑该部分费用已含在该单价中 4.砼现场泵送采用的机械种类及方式：投标人自行确定，泵送费用和泵送运距已综合考虑在单价中 5.做法：满足设计及现行施工技术、质量验收规范要求 | D12: m3 | E12: 0.16 | F12: 514.70 | G12: 82.35
A13: 7 | B13: 桥台 C35商品砼 | C13: 1.混凝土强度等级：C35商品砼 2.砼运输方式及运距：投标人自行确定 3.砼现场泵送采用的机械种类及方式：投标人自行确定，泵送费用和泵送运距已综合考虑在单价中 4.做法：满足设计及现行施工技术、质量验收规范要求 | D13: m3 | E13: 18.2 | F13: 558.20 | G13: 10159.24
A14: 8 | B14: 桥墩 C35自密实品砼 | C14: 1.混凝土强度等级：C35自密实品砼 2.砼运输方式及运距：投标人自行确定 3.外加剂：满足设计要求，投标人应考虑该部分费用已含在该单价中 4.砼现场泵送采用的机械种类及方式：投标人自行确定，泵送费用和泵送运距已综合考虑在单价中 5.做法：满足设计及现行施工技术、质量验收规范要求 | D14: m3 | E14: 9.1 | F14: 600.00 | G14: 5460.00
A15: 9 | B15: 桥墩 C40细石商品砼 | C15: 1.混凝土强度等级：C40细石商品砼 2.砼运输方式及运距：投标人自行确定 3.外加剂：满足设计要求，投标人应考虑该部分费用已含在该单价中 4.砼现场泵送采用的机械种类及方式：投标人自行确定，泵送费用和泵送运距已综合考虑在单价中 5.做法：满足设计及现行施工技术、质量验收规范要求 | D15: m3 | E15: 0.24 | F15: 600.00 | G15: 144.00
A16: 10 | B16: 现浇构件钢筋HRB400E直径 ≥φ16 制作、安装 | C16: 1.钢筋种类、规格：螺纹钢HRB400E ≥φ16 2.钢筋连接方式：各种连接方式投标人综合考虑在报价中 3.弧形构件钢筋投标人综合考虑，进入综合单价中 4.投标人综合考虑埋设的方式，以及钢筋笼吊装等费用均包括在所报综合单价中不再另行计取 5.做法：满足设计及现行施工技术、质量验收规范要求 | D16: t | E16: 5.384 | F16: 6500.00 | G16: 34996.00
B17: 分部小计 | G17: =SUM(G10:G16) -> 54740.83 | I17: =SUM(I10:I16) -> 0.00
B18: 桥面工程
A19: 12 | B19: 15+1.9PVB+15mm钢化夹胶玻璃 | C19: 1.骨架制作、运输、安装、刷防护材料、油漆：在主梁、横梁、小纵梁上焊接50mm×50mm×2mm的定位矩管,定位矩管与铺装顶面齐平,采用浸锌处理； 2.玻璃：玻璃桥面板采用15+1.9PVB+15mm钢化夹胶玻璃(透明无色)； 3.接缝、嵌缝：在玻璃板端和定位矩管之间预留5mm缝隙,用于填塞泡沫条,并填充结构密封胶，具体详见施工图； | D19: m2 | E19: 520.4 | F19: 850.00 | G19: =F19*E19 -> 442340.00
B20: 分部小计 | G20: =SUM(G19:G19) -> 442340.00 | I20: =SUM(I19:I19) -> 0.00
B21: 钢结构工程
A22: 15 | B22: 成品箱形钢梁（斜面、曲线、螺旋流线型） | C22: 1.成品钢材品种、规格：成品箱形钢梁（斜面、曲线、螺旋流线型），Q355C，具体规格详设计施工图 2.安装高度：详见设计施工图 3.钢构件表面先除锈后，防腐、油漆其余具体做法按设计施工图要求 4.螺栓、橡胶垫板、固定配件和连接配件等材料种类规格：详见设计施工图，现场施工满足设计规范要求，其费用已综合考虑在单价中 5.钢结构连接处和探伤做法：详见设计施工图，满足设计要求； 6.伸缩缝：U型不锈钢伸缩缝，沥青油膏嵌缝，不锈钢盖板； 7.支座采用橡胶支座GYZF4 d200/GYZ d400，具体规格详设计施工图； 8.钢构件场内、外运距：由投标人自行确定 9.其他：该单价费用已包括安装、拼接、吊装、调试和成品保护等费用，投标人报价时应充分考虑；其余涉及钢结构措施费，另列在干杯建筑物总价包干措施费中； 10.做法：满足设计及现行施工技术、质量验收规范要求 | D22: t | E22: 117.755 | F22: 10300.00 | G22: =F22*E22 -> 1212876.50
A23: 25 | B23: 成品箱形钢桥墩 | C23: 1.成品钢材品种、规格：成品箱形钢梁（斜面、曲线、螺旋流线型），Q355C，具体规格详设计施工图 2.安装高度：详见设计施工图 3.钢构件表面先除锈后，防腐、油漆其余具体做法按设计施工图要求 4.螺栓、橡胶垫板、固定配件和连接配件等材料种类规格：详见设计施工图，现场施工满足设计规范要求，其费用已综合考虑在单价中 5.钢结构连接处和探伤做法：详见设计施工图，满足设计要求 6.钢构件场内、外运距：由投标人自行确定 7.其他：该单价费用已包括安装、拼接、吊装、调试和成品保护等费用，投标人报价时应充分考虑；其余涉及钢结构措施费，另列在干杯建筑物总价包干措施费中； 8.做法：满足设计及现行施工技术、质量验收规范要求 | D23: t | E23: 8.295 | F23: 10300.00 | G23: =F23*E23 -> 85438.50
A24: 17 | B24: 零星钢构件 | C24: 1.成品钢材品种、规格：Q355B，具体规格详设计施工图 2.安装高度：详见设计施工图 3.钢构件表面先除锈后，钢构件表面先除锈后，防腐、油漆其余具体做法按设计施工图要求 4.螺栓、橡胶垫板、固定配件和连接配件等材料种类规格：详见设计施工图，现场施工满足设计规范要求，其费用已综合考虑在单价中 5.钢结构连接处和探伤做法：详见设计施工图，满足设计要求 6.钢构件场内、外运距：由投标人自行确定 7.其他：该单价费用已包括安装、拼接和吊装费用，投标人报价时应充分考虑；其余涉及钢结构措施费，另列在干杯建筑物总价包干措施费中； 8.做法：满足设计及现行施工技术、质量验收规范要求 | D24: t | E24: 1.902 | F24: 10000.00 | G24: =F24*E24 -> 19020.00
B25: 分部小计 | G25: =SUM(G22:G24) -> 1317335.00 | I25: =SUM(I22:I24) -> 0.00
B26: 措施项目
A27: 22 | B27: 脚手架 | C27: 1.搭设方式：由投标人自行考虑 2.搭设高度：详见设计 3.脚手架材质：由投标人自行考虑 4.做法：满足设计及现行技术、质量验收规范要求 | D27: 项 | E27: 1 | F27: 32000.00 | G27: 32000.00
A28: 24 | B28: 垫层模板安、拆 | C28: 1.支模高度：综合 2.模板类型：木模、组合钢模板、竹胶合板等综合 3.支架材料：钢管、竹、木支架综合，断面尺寸、材质、工艺等符合设计和施工验收规范要求 4.本项目投标人应根据施工经验,现场实际情况和企业自身情况综合报价,不论采用何种支模方式综合报价 | D28: m2 | E28: 4 | F28: 35.00 | G28: =F28*E28 -> 140.00
A29: 26 | B29: 桥墩模板安、拆 | C29: 1.支模高度：综合 2.模板类型：木模、组合钢模板、竹胶合板等综合 3.支架材料：钢管、竹、木支架综合，断面尺寸、材质、工艺等符合设计和施工验收规范要求 4.本项目投标人应根据施工经验,现场实际情况和企业自身情况综合报价,不论采用何种支模方式综合报价 | D29: m2 | E29: =3.14*(0.3*0.3*6+0.4*0.4*6.4)*2 -> 9.82 | F29: 70.00 | G29: =F29*E29 -> 687.53
A30: 27 | B30: 桥台模板安、拆 | C30: 1.支模高度：综合 2.模板类型：木模、组合钢模板、竹胶合板等综合 3.支架材料：钢管、竹、木支架综合，断面尺寸、材质、工艺等符合设计和施工验收规范要求 4.本项目投标人应根据施工经验,现场实际情况和企业自身情况综合报价,不论采用何种支模方式综合报价 | D30: m2 | E30: =(1.6+4.5)*2*1.9*2 -> 46.36 | F30: 70.00 | G30: =F30*E30 -> 3245.20
B31: 分部小计 | G31: =SUM(G27:G30) -> 36072.73 | I31: =SUM(I27:I30) -> 0.00
B32: 大型机械设备进出场及安拆
A33: 28 | B33: 大型机械设备进出场及安拆 | C33: 1.机械设备名称、型号：投标人综合自身施工组织能力考虑机械型号； 2.机械进场、出场费用已含在该单价中 3.做法：满足设计及现行施工技术、质量验收规范要求 | D33: 项 | E33: 1 | F33: 5000.00 | G33: =F33*E33 -> 5000.00
B34: 分部小计 | G34: =G33 -> 5000.00 | I34: =I33 -> 0.00
B35: 合 计： | G35: =G8+G17+G20+G25+G31+G34 -> 1,858,909.57 | I35: =I8+I17+I20+I25+I31+I34 -> 0.00

Sheet 退台栈桥
A1: 2023年“H”项目结构工程专业分包工程量清单与报价表
A2: 序号 | B2: 项目名称 | C2: 项目特征 | D2: 计量 单位 | E2: 工程量 | F2: 招标控制价（元） | H2: 金额（元）
F3: 单价 | G3: 合价 | H3: 班组所报全费用单价 | I3: 合价
B4: 土石方工程
A5: 1 | B5: 挖基坑土石方 | C5: 1.土石类别：各类土、石(含淤泥)综合，以及现场建(废)渣综合 2.基础类型：综合 3.开挖或开凿深度：按设计要求 4.基底摊座要求：综合，由投标人综合考虑 5.开挖、装土方式：综合，由投标人综合考虑 6.土、石渣场内运输方式及运距：投标人自行确定 7.做法：满足设计及现行施工技术、质量验收规范要求 | D5: m3 | E5: 61.7 | F5: 18.00 | G5: =F5*E5 -> 1110.60
A6: 2 | B6: 回填方 | C6: 1.填方材料品种：综合，但需满足设计要求 2.密实度：回填土分层夯填，压实系数满足设计要求 3.回填土来源及场内外运输方式、运距：投标人自行确定 4.做法：满足设计及现行施工技术、质量验收规范要求 | D6: m3 | E6: 19.8 | F6: 7.00 | G6: 138.60
A7: 3 | B7: 余方弃置（含弃置费） | C7: 1.废弃料品种：土方、石方综合（含淤泥），以及现场建(废)渣综合 2.弃土、石（渣）场及场外运距：投标人自行踏勘现场考虑、自主确定弃土、石场及运距（含弃渣、土、石场费用、弃土费） 3.做法：满足设计及现行施工技术、质量验收规范要求 | D7: m3 | E7: 41.9 | F7: 20.00 | G7: 838.00
B8: 分部小计 | G8: =SUM(G5:G7) -> 2087.20 | I8: =SUM(I5:I7) -> 0.00
B9: 桥涵工程
A10: 4 | B10: 垫层 C15商品砼 | C10: 1.混凝土强度等级：C15商品砼 2.砼运输方式及运距：投标人自行确定 3.外加剂：满足设计要求，投标人应考虑该部分费用已含在该单价中 4.砼现场泵送采用的机械种类及方式：投标人自行确定，泵送费用和泵送运距已综合考虑在单价中 5.做法：满足设计及现行施工技术、质量验收规范要求 | D10: m3 | E10: 0.3 | F10: =370*1.03+40+30 -> 451.10 | G10: =F10*E10 -> 135.33
A11: 5 | B11: C25细石混凝土墩（台）身 | C11: 1.混凝土强度等级：C20商品细石砼 2.砼运输方式及运距：投标人自行确定 3.外加剂：满足设计要求，投标人应考虑该部分费用已含在该单价中 4.砼现场泵送采用的机械种类及方式：投标人自行确定，泵送费用和泵送运距已综合考虑在单价中 5.做法：满足设计及现行施工技术、质量验收规范要求 | D11: m3 | E11: 0.1 | F11: 514.70 | G11: 51.47
A12: 6 | B12: 桥墩 C35自密实品砼 | C12: 1.混凝土强度等级：C35自密实品砼 2.砼运输方式及运距：投标人自行确定 3.外加剂：满足设计要求，投标人应考虑该部分费用已含在该单价中 4.砼现场泵送采用的机械种类及方式：投标人自行确定，泵送费用和泵送运距已综合考虑在单价中 5.做法：满足设计及现行施工技术、质量验收规范要求 | D12: m3 | E12: 1.1 | F12: 600.00 | G12: 660.00
A13: 7 | B13: 桥台 C35水下商品砼 | C13: 1.混凝土强度等级：C35水下商品砼 2.砼运输方式及运距：投标人自行确定 3.外加剂：满足设计要求，投标人应考虑该部分费用已含在该单价中 4.砼现场泵送采用的机械种类及方式：投标人自行确定，泵送费用和泵送运距已综合考虑在单价中 5.做法：满足设计及现行施工技术、质量验收规范要求 | D13: m3 | E13: 36 | F13: 600.00 | G13: 21600.00
A14: 8 | B14: 桥墩 C40细石商品砼 | C14: 1.混凝土强度等级：C40细石商品砼 2.砼运输方式及运距：投标人自行确定 3.外加剂：满足设计要求，投标人应考虑该部分费用已含在该单价中 4.砼现场泵送采用的机械种类及方式：投标人自行确定，泵送费用和泵送运距已综合考虑在单价中 5.做法：满足设计及现行施工技术、质量验收规范要求 | D14: m3 | E14: 0.1 | F14: 600.00 | G14: 60.00
A15: 9 | B15: 现浇构件钢筋HPB300直径 φ10以内 制作、安装 | C15: 1.钢筋种类、规格：钢筋HPB300直径 φ10以内 2.钢筋连接方式：各种连接方式投标人综合考虑在报价中 3.弧形构件钢筋投标人综合考虑，进入综合单价中 4.投标人综合考虑埋设的方式，以及钢筋笼吊装等费用均包括在所报综合单价中不再另行计取 5.做法：满足设计及现行施工技术、质量验收规范要求 | D15: t | E15: 1 | F15: 6500.00 | G15: 6500.00
A16: 10 | B16: 现浇构件钢筋HRB400E直径 ≥φ16 制作、安装 | C16: 1.钢筋种类、规格：螺纹钢HRB400E ≥φ16 2.钢筋连接方式：各种连接方式投标人综合考虑在报价中 3.弧形构件钢筋投标人综合考虑，进入综合单价中 4.投标人综合考虑埋设的方式，以及钢筋笼吊装等费用均包括在所报综合单价中不再另行计取 5.做法：满足设计及现行施工技术、质量验收规范要求 | D16: t | E16: 1.274 | F16: 6500.00 | G16: 8281.00
B17: 分部小计 | G17: =SUM(G10:G16) -> 37287.80 | I17: =SUM(I10:I16) -> 0.00
B18: 桥面工程
A19: 11 | B19: 共挤木塑 | C19: 1.龙骨铺设：50X50X4镀锌矩形钢龙骨@450； 3.面层铺贴：120X40共挤塑木； 4.刷防护材料 6.材料运输 | D19: m2 | E19: 151.9 | F19: 550.00 | G19: =F19*E19 -> 83545.00
A20: 12 | B20: 桥面 50mm厚C40细石混凝土 | C20: 1.混凝土强度等级：C40细石商品砼； 2.砼运输方式及运距：投标人自行确定 3.砼现场泵送采用的机械种类及方式：投标人自行确定，泵送费用和泵送运距已综合考虑在单价中 4.做法：满足设计及现行施工技术、质量验收规范要求 | D20: m2 | E20: 151.9 | F20: 52.00 | G20: 7898.80
A21: 13 | B21: 桥面 2mm厚防水涂料 | C21: 1.防水膜品种：改性环氧树脂 2.涂膜厚度：2mm； 3.做法：满足设计及现行施工技术、质量验收规范要求 | D21: m2 | E21: 151.9 | F21: 40.00 | G21: 6076.00
A22: 15 | B22: 桥面排（泄）水管 φ80 | C22: 1.材料品种：PVC 2.管径：φ80 3.安装方式：固定管卡，泄水管口安装时与地袱侧板开洞周围进行防水密封处理； 4.做法：满足设计及现行施工技术、质量验收规范要求 | D22: m | E22: 16 | F22: 30.00 | G22: 480.00
A23: 16 | B23: 钢管φ80 | C23: 1.材料品种：镀锌钢管 2.管径：φ80 3.具体做法：详见设计 4.满足设计及现行施工技术、质量验收规范要求 | D23: m | E23: 7.6 | F23: 50.00 | G23: 380.00
A24: 17 | B24: 地漏 DN100 | C24: 1.材料品种：不锈钢地漏 2.规格：DN100 3.具体做法：详见设计 4.满足设计及现行施工技术、质量验收规范要求 | D24: 个 | E24: 6 | F24: 150.00 | G24: 900.00
A25: 18 | B25: 6cm挤塑聚苯板防水 | C25: 1.防水材料品种：6cm挤塑聚苯板防水 2.做法：满足设计及现行施工技术、质量验收规范要求 | D25: m2 | E25: 15.4 | F25: 58.93 | G25: 907.52
A26: 19 | B26: C35防水砼 | C26: 1.混凝土强度等级：C35防水商品砼 2.砼运输方式及运距：投标人自行确定 3.外加剂：满足设计要求，投标人应考虑该部分费用已含在该单价中 4.砼现场泵送采用的机械种类及方式：投标人自行确定，泵送费用和泵送运距已综合考虑在单价中 5.做法：满足设计及现行施工技术、质量验收规范要求 | D26: m3 | E26: 0.8 | F26: 600.00 | G26: 480.00
B27: 分部小计 | G27: =SUM(G19:G26) -> 100667.32 | I27: =SUM(I19:I26) -> 0.00
B28: 钢结构工程
A29: 15 | B29: 成品箱形钢梁（斜面、曲线、螺旋流线型） | C29: 1.成品钢材品种、规格：成品箱形钢梁（斜面、曲线、螺旋流线型），Q355C，具体规格详设计施工图 2.安装高度：详见设计施工图 3.钢构件表面先除锈后，防腐、油漆其余具体做法按设计施工图要求 4.螺栓、橡胶垫板、固定配件和连接配件等材料种类规格：详见设计施工图，现场施工满足设计规范要求，其费用已综合考虑在单价中 5.钢结构连接处和探伤做法：详见设计施工图，满足设计要求； 6.伸缩缝：U型不锈钢伸缩缝，沥青油膏嵌缝，不锈钢盖板； 7.支座采用橡胶支座GYZF4 d200/GYZ d400，具体规格详设计施工图； 8.钢构件场内、外运距：由投标人自行确定 9.其他：该单价费用已包括安装、拼接、吊装、调试和成品保护等费用，投标人报价时应充分考虑；其余涉及钢结构措施费，另列在干杯建筑物总价包干措施费中； 11.做法：满足设计及现行施工技术、质量验收规范要求 | D29: t | E29: 67.24 | F29: 10300.00 | G29: =F29*E29 -> 692572.00
A30: 25 | B30: 成品箱形钢桥墩 | C30: 1.成品钢材品种、规格：成品箱形钢梁（斜面、曲线、螺旋流线型），Q355C，具体规格详设计施工图 2.安装高度：详见设计施工图 3.钢构件表面先除锈后，防腐、油漆其余具体做法按设计施工图要求 4.螺栓、橡胶垫板、固定配件和连接配件等材料种类规格：详见设计施工图，现场施工满足设计规范要求，其费用已综合考虑在单价中 5.钢结构连接处和探伤做法：详见设计施工图，满足设计要求 6.钢构件场内、外运距：由投标人自行确定 7.其他：该单价费用已包括安装、拼接、吊装、调试和成品保护等费用，投标人报价时应充分考虑；其余涉及钢结构措施费，另列在干杯建筑物总价包干措施费中； 8.做法：满足设计及现行施工技术、质量验收规范要求 | D30: t | E30: 2.331 | F30: 10300.00 | G30: =F30*E30 -> 24009.30
A31: 17 | B31: 零星钢构件 | C31: 1.成品钢材品种、规格：Q355B，具体规格详设计施工图 2.安装高度：详见设计施工图 3.钢构件表面先除锈后，钢构件表面先除锈后，防腐、油漆其余具体做法按设计施工图要求 4.螺栓、橡胶垫板、固定配件和连接配件等材料种类规格：详见设计施工图，现场施工满足设计规范要求，其费用已综合考虑在单价中 5.钢结构连接处和探伤做法：详见设计施工图，满足设计要求 6.钢构件场内、外运距：由投标人自行确定 7.其他：该单价费用已包括安装、拼接和吊装费用，投标人报价时应充分考虑；其余涉及钢结构措施费，另列在干杯建筑物总价包干措施费中； 8.做法：满足设计及现行施工技术、质量验收规范要求 | D31: t | E31: 1.044 | F31: 10000.00 | G31: =F31*E31 -> 10440.00
B32: 分部小计 | G32: =SUM(G29:G31) -> 727021.30 | I32: =SUM(I29:I31) -> 0.00
B33: 措施项目
A34: 22 | B34: 脚手架 | C34: 1.搭设方式：由投标人自行考虑 2.搭设高度：详见设计 3.脚手架材质：由投标人自行考虑 4.做法：满足设计及现行技术、质量验收规范要求 | D34: 项 | E34: 1 | F34: 10000.00 | G34: =F34*E34 -> 10000.00
A35: 23 | B35: 垫层模板安、拆 | C35: 1.支模高度：综合 2.模板类型：木模、组合钢模板、竹胶合板等综合 3.支架材料：钢管、竹、木支架综合，断面尺寸、材质、工艺等符合设计和施工验收规范要求 4.本项目投标人应根据施工经验,现场实际情况和企业自身情况综合报价,不论采用何种支模方式综合报价 | D35: m2 | E35: 1.5 | F35: 35.00 | G35: =F35*E35 -> 52.50
A36: 23 | B36: 桥墩模板安、拆 | C36: 1.支模高度：综合 2.模板类型：木模、组合钢模板、竹胶合板等综合 3.支架材料：钢管、竹、木支架综合，断面尺寸、材质、工艺等符合设计和施工验收规范要求 4.本项目投标人应根据施工经验,现场实际情况和企业自身情况综合报价,不论采用何种支模方式综合报价 | D36: m2 | E36: =3.14*0.3*0.3*6.5 -> 1.84 | F36: 70.00 | G36: =F36*E36 -> 128.58
A37: 24 | B37: 桥台模板安、拆 | C37: 1.支模高度：综合 2.模板类型：木模、组合钢模板、竹胶合板等综合 3.支架材料：钢管、竹、木支架综合，断面尺寸、材质、工艺等符合设计和施工验收规范要求 4.本项目投标人应根据施工经验,现场实际情况和企业自身情况综合报价,不论采用何种支模方式综合报价 | D37: m2 | E37: =(2.5+1.2)*2*1.9 -> 14.06 | F37: 70.00 | G37: =F37*E37 -> 984.20
B38: 分部小计 | G38: =SUM(G34:G37) -> 11165.28 | I38: =SUM(I34:I37) -> 0.00
B39: 大型机械设备进出场及安拆
A40: 25 | B40: 大型机械设备进出场及安拆 | C40: 1.机械设备名称、型号：投标人综合自身施工组织能力考虑机械型号； 2.机械进场、出场费用已含在该单价中 3.做法：满足设计及现行施工技术、质量验收规范要求 | D40: 项 | E40: 1 | F40: 5000.00 | G40: =F40*E40 -> 5000.00
B41: 分部小计 | G41: =G40 -> 5000.00 | I41: =I40 -> 0.00
B42: 合 计： | G42: =G8+G17+G27+G32+G38+G41 -> 883,228.91 | I42: =I8+I17+I27+I32+I38+I41 -> 0.00
